bitfinex/quotes_SOLUSD_20250204
["timestamp","ask_amount","ask_price","bid_price","bid_amount"]
[1738710105091,0.0300102,204.53,204.52,351.47489]
[1738710105273,80.8,204.67,204.56,1.12549]
[1738710105274,0.02318806,204.58,204.56,1.12549]
[1738710105476,22.90995563,204.71,204.62,20.0]
[1738710105787,1.6533,204.74,204.67,22.90995563]
[1738710106372,1.6533,204.74,204.69,22.90995563]
[1738710106373,0.03,204.74,204.69,22.90995563]
[1738710106569,0.03,204.74,204.71,22.90995563]
[1738710106788,0.03,204.74,204.71,14.30091336]
[1738710106994,0.03,204.74,204.73,14.30091336]
[1738710107403,0.03,204.74,204.73,19.18531336]
[1738710108496,0.03,204.74,204.73,331.18531336]
[1738710108791,0.03,204.74,204.73,339.75909256]
[1738710108973,0.03,204.75,204.74,1.37647]
[1738710109179,22.87469256,204.88,204.77,20.12549]
[1738710109495,22.87469256,204.92,204.83,22.87469256]
[1738710109802,0.10087145,204.84,204.83,22.87469256]
[1738710110006,0.10087145,204.84,204.81,42.87469256]
[1738710110574,0.10087145,204.84,204.83,22.87469256]
[1738710111990,0.10087145,204.84,204.83,23.00018256]
[1738710112172,0.10087145,204.84,204.83,335.12567256]
[1738710112499,0.10087145,204.84,204.83,348.66301109]
[1738710112675,7.145e-05,204.84,204.83,354.97671109]
[1738710112879,0.03,204.94,204.88,0.12549]
[1738710113205,0.03,204.94,204.91,22.87469256]
[1738710113890,0.03,204.94,204.89,22.87469256]
[1738710114204,0.03,204.94,204.87,42.87469256]
[1738710114996,0.03,204.94,204.88,4.8809]
[1738710115381,0.25098,204.93,204.85,22.87469256]
[1738710115589,22.87469256,204.92,204.83,22.87469256]
[1738710115984,22.87469256,204.92,204.83,334.87469256]
[1738710116177,22.87469256,204.9,204.83,312.0]
[1738710116386,22.87469256,204.9,204.82,4.46]
[1738710116802,22.87469256,204.88,204.82,4.46]
[1738710117010,0.12549,204.87,204.81,30.77393049]
[1738710117183,22.87469256,204.84,204.75,22.87469256]
[1738710117493,22.87469256,204.84,204.74,4.8842]
[1738710117494,22.87469256,204.83,204.77,20.0]
[1738710117697,22.87469256,204.83,204.76,22.35]
[1738710119098,0.12549,204.87,204.78,22.87469256]
[1738710119099,22.87469256,204.85,204.78,22.87469256]
[1738710119401,22.87469256,204.87,204.8,22.87469256]
[1738710119707,80.8,204.9,204.82,22.87469256]
[1738710119881,80.8,204.9,204.84,22.87469256]
[1738710120488,22.87469256,204.93,204.86,22.87469256]
[1738710120982,22.87469256,204.93,204.86,27.75579256]
[1738710121894,29.36968256,204.95,204.86,27.75579256]
[1738710122999,29.24419256,204.95,204.89,312.0]
[1738710126226,22.87469256,204.95,204.89,312.0]
[1738710127310,80.83,204.96,204.89,4.8806]
[1738710127488,80.83,204.96,204.9,22.87469256]
[1738710127685,80.83,204.96,204.92,22.87469256]
[1738710127890,0.03,204.96,204.92,22.87469256]
[1738710128488,0.03,204.96,204.93,4.8797]
[1738710129221,0.03,204.96,204.93,5.00519]
[1738710129430,0.03,204.96,204.93,48.54252853]
[1738710129727,0.13456529,204.94,204.93,48.54252853]
[1738710129898,8.747e-05,204.95,204.94,15.91380853]
[1738710130098,8.747e-05,204.95,204.94,41.05107352]
[1738710130302,5.136e-05,204.97,204.96,2.0]
[1738710130487,0.09883529,204.98,204.96,2.0]
[1738710130488,8.665e-05,204.98,204.97,13.91380853]
[1738710130689,23.87469256,205.2,204.97,13.91380853]
[1738710130690,0.0001,205.15,205.14,1.50196]
[1738710130908,7.53451276,205.29,205.19,13.41184853]
[1738710131106,7.53451276,205.29,205.24,22.87469256]
[1738710131299,22.87469256,205.28,205.18,22.87469256]
[1738710131700,22.87469256,205.28,205.21,20.0]
[1738710132110,7.53451276,205.29,205.23,20.0]
[1738710132307,7.53451276,205.29,205.25,20.0]
[1738710132698,0.25098,205.27,205.18,22.87469256]
[1738710132899,22.87469256,205.2,205.12,22.87469256]
[1738710133204,22.87469256,205.2,205.1,27.31469256]
[1738710133405,22.87469256,205.2,205.11,13.53733853]
[1738710133598,22.87469256,205.2,205.14,20.0]
[1738710133798,22.87469256,205.16,205.07,4.8762]
[1738710134818,22.87469256,205.16,205.08,22.87469256]
[1738710135490,22.87469256,205.2,205.12,22.87469256]
[1738710136118,22.87469256,205.22,205.14,22.87469256]
[1738710136315,22.87469256,205.26,205.18,22.87469256]
[1738710136524,22.87469256,205.28,205.2,22.87469256]
[1738710136818,0.12549,205.27,205.22,312.0]
[1738710137616,0.12549,205.23,205.14,22.87469256]
[1738710137915,22.87469256,205.16,205.1,4.44]
[1738710138091,22.87469256,205.14,205.07,27.75089256]
[1738710139017,22.87469256,205.18,205.1,42.87469256]
[1738710139213,103.67469256,205.26,205.16,22.87469256]
[1738710139404,103.67469256,205.26,205.18,22.87469256]
[1738710139405,0.25098,205.25,205.18,22.87469256]
[1738710139608,80.8,205.26,205.2,22.87469256]
[1738710140202,6.3273,205.3,205.24,22.87469256]
[1738710140407,22.87469256,205.32,205.24,22.87469256]
[1738710140609,22.87469256,205.32,205.24,334.87469256]
[1738710140808,22.87469256,205.3,205.24,312.0]
[1738710141202,0.12549,205.27,205.18,27.74819256]
[1738710141409,0.12549,205.25,205.18,22.87469256]
[1738710141610,0.12549,205.25,205.19,20.0]
[1738710142921,0.03,205.26,205.2,22.87469256]
[1738710144230,0.03,205.26,205.23,312.0]
[1738710145025,0.03,205.26,205.23,316.8723]
[1738710145930,0.03,205.26,205.23,4.8723]
[1738710146426,22.90469256,205.26,205.2,4.8732]
[1738710146611,22.87469256,205.24,205.19,20.0]
[1738710146820,22.87469256,205.22,205.15,4.8742]
[1738710148234,0.15549,205.26,205.16,22.87469256]
[1738710148235,22.87469256,205.24,205.16,22.87469256]
[1738710148436,0.15549,205.26,205.2,22.87469256]
[1738710148630,0.03,205.26,205.2,22.87469256]
[1738710149018,0.03,205.26,205.2,334.87469256]
[1738710149434,0.03,205.26,205.2,22.87469256]
[1738710149818,0.09234399,205.21,205.2,22.87469256]
[1738710150023,0.09234399,205.21,205.2,28.47872356]
[1738710150564,0.09234399,205.21,205.2,42.01606209]
[1738710150852,8.604e-05,205.22,205.21,14.78831853]
[1738710151016,4.97e-06,205.26,205.24,33.53733853]
[1738710151353,4.97e-06,205.26,205.25,37.14252111]
[1738710152120,4.97e-06,205.26,205.25,42.01462111]
[1738710152537,4.97e-06,205.26,205.25,354.01462111]
[1738710152713,4.97e-06,205.26,205.25,353.28413109]
[1738710153230,4.97e-06,205.26,205.25,383.28413109]
[1738710153458,0.03000497,205.26,205.25,383.28413109]
[1738710154633,0.02107589,205.27,205.25,383.15864109]
[1738710154815,0.02107589,205.27,205.25,71.15864109]
[1738710155015,0.02107589,205.27,205.25,30.0]
[1738710155215,0.02107589,205.27,205.23,4.8724]
[1738710155511,22.89576845,205.27,205.21,4.8728]
[1738710155715,22.89576845,205.27,205.22,50.0]
[1738710155935,22.89576845,205.27,205.21,4.8728]
[1738710156120,0.02107589,205.27,205.21,27.74749256]
[1738710157456,0.02107589,205.27,205.23,22.87469256]
[1738710157755,0.02107589,205.27,205.26,312.0]
[1738710158338,0.02107589,205.27,205.26,316.8718]
[1738710158919,0.02107589,205.27,205.26,330.28364853]
[1738710159341,7.589e-05,205.27,205.26,330.28364853]
[1738710160153,8.1525,205.43,205.31,0.12549]
[1738710160358,0.25098,205.39,205.32,4.42]
[1738710160648,22.87469256,205.34,205.32,4.42]
[1738710161138,22.87469256,205.36,205.32,4.42]
[1738710162240,22.87469256,205.38,205.32,4.42]
[1738710162428,0.25098,205.37,205.32,4.42]
[1738710163437,22.87469256,205.34,205.28,4.8712]
[1738710164229,22.87469256,205.36,205.28,4.8712]
[1738710164723,22.87469256,205.36,205.29,22.87469256]
[1738710165131,22.87469256,205.38,205.29,22.87469256]
[1738710165436,0.25098,205.39,205.31,22.87469256]
[1738710165632,23.39149256,205.4,205.31,22.87469256]
[1738710165633,22.90469256,205.4,205.31,22.87469256]
[1738710165943,0.03,205.37,205.31,22.87469256]
[1738710166439,0.03,205.37,205.36,312.0]
[1738710166639,0.03,205.37,205.36,316.8694]
[1738710167742,0.03,205.37,205.36,4.8694]
[1738710169733,0.11882989,205.37,205.36,4.8694]
[1738710170122,0.11882989,205.37,205.36,34.8694]
[1738710170649,0.11882989,205.37,205.36,346.8694]
[1738710171030,0.11882989,205.37,205.36,316.8694]
[1738710171227,0.11882989,205.37,205.31,22.87469256]
[1738710171447,0.11882989,205.37,205.33,30.0]
[1738710172431,0.11882989,205.37,205.31,4.8706]
[1738710172637,0.11882989,205.37,205.3,4.8709]
[1738710172928,0.11882989,205.37,205.29,4.8711]
[1738710172929,22.87469256,205.34,205.29,4.8711]
[1738710173148,22.87469256,205.35,205.29,4.8711]
[1738710174061,23.36159256,205.35,205.29,20.0]
[1738710174228,23.36159256,205.35,205.3,312.0]
[1738710174430,22.87469256,205.33,205.3,312.0]
[1738710174850,22.87469256,205.34,205.3,312.0]
[1738710175351,22.87469256,205.32,205.24,0.063]
[1738710175567,22.87469256,205.28,205.24,0.063]
[1738710176131,22.87469256,205.27,205.24,0.063]
[1738710176755,22.87469256,205.26,205.24,0.063]
[1738710177053,22.87469256,205.27,205.24,0.063]
[1738710178037,23.36179256,205.28,205.24,0.063]
[1738710178451,23.36179256,205.28,205.24,312.063]
[1738710179261,22.87469256,205.27,205.24,312.063]
[1738710179957,22.87469256,205.27,205.24,0.063]
[1738710180136,22.87469256,205.26,205.24,0.063]
[1738710180859,22.87469256,205.28,205.24,0.063]
[1738710181035,22.87469256,205.3,205.24,0.063]
[1738710181846,23.36169256,205.3,205.24,0.063]
[1738710183044,22.87469256,205.28,205.24,0.063]
[1738710183240,22.87469256,205.26,205.24,0.063]
[1738710186055,22.87469256,205.26,205.24,312.063]
[1738710186441,0.4871,205.27,205.24,312.063]
[1738710189164,0.4871,205.27,205.24,0.063]
[1738710189844,0.09424268,205.25,205.24,0.063]
[1738710190867,0.09424268,205.25,205.24,0.79365685]
[1738710191852,0.09424268,205.25,205.24,5.66595685]
[1738710192254,0.09424268,205.25,205.24,347.66595685]
[1738710192439,0.09424268,205.25,205.24,346.9353]
[1738710194654,0.09424268,205.25,205.24,342.063]
[1738710194853,0.09424268,205.25,205.24,0.063]
[1738710197244,22.96893524,205.25,205.24,0.063]
[1738710197444,23.45613524,205.25,205.24,0.063]
[1738710197761,23.70711524,205.25,205.24,0.063]
[1738710198470,23.83260524,205.25,205.24,0.063]
[1738710205672,23.45613524,205.25,205.24,0.063]
[1738710205847,0.09424268,205.25,205.24,0.063]
[1738710207064,0.09424268,205.25,205.24,0.79364361]
[1738710207756,0.09424268,205.25,205.24,5.66594361]
[1738710207954,0.09011614,205.26,205.25,13.91380853]
[1738710207955,5.882e-05,205.26,205.25,13.91380853]
[1738710208852,5.882e-05,205.26,205.25,355.91380853]
[1738710209055,5.882e-05,205.26,205.25,360.78590853]
[1738710209758,0.10099752,205.26,205.25,360.78590853]
[1738710209964,9.752e-05,205.26,205.25,360.78590853]
[1738710210156,9.226e-05,205.28,205.27,33.91380853]
[1738710210360,9.226e-05,205.28,205.27,91.91883572]
[1738710210590,9.825e-05,205.29,205.27,92.91883572]
[1738710210970,1.116e-05,205.3,205.29,0.50196]
[1738710211156,0.08688901,205.31,205.29,37.51879473]
[1738710211479,0.08688901,205.31,205.29,67.51879473]
[1738710212056,0.08688901,205.31,205.3,4.99639]
[1738710212586,0.08688901,205.31,205.3,34.99639]
[1738710212889,0.11688901,205.31,205.3,30.0]
[1738710213276,0.11688901,205.31,205.3,342.0]
[1738710213474,0.11688901,205.31,205.3,30.0]
[1738710213796,0.60388901,205.31,205.27,4.4]
[1738710213965,22.87469256,205.28,205.27,4.4]
[1738710215802,22.87469256,205.29,205.27,4.4]
[1738710216003,0.61249,205.3,205.27,4.4]
[1738710216177,23.48718256,205.3,205.27,4.4]
[1738710216691,23.48718256,205.3,205.27,316.4]
[1738710218661,23.48718256,205.3,205.27,4.4]
[1738710218863,22.87469256,205.28,205.24,0.063]
[1738710219267,22.87469256,205.26,205.24,0.063]
[1738710219870,22.87469256,205.25,205.24,0.063]
[1738710221681,22.87469256,205.25,205.24,312.063]
[1738710222076,22.87469256,205.25,205.24,0.063]
[1738710222383,104.28738256,205.25,205.24,0.063]
[1738710223194,20.12549,205.21,205.14,0.063]
[1738710223397,22.87469256,205.15,205.14,0.063]
[1738710224277,23.00018256,205.15,205.14,0.063]
[1738710224791,23.25116256,205.15,205.14,0.063]
[1738710225490,23.73856256,205.15,205.14,0.063]
[1738710226997,23.00018256,205.15,205.14,0.063]
[1738710227188,22.87469256,205.15,205.14,0.063]
[1738710227390,80.8,205.18,205.14,0.063]
[1738710228077,13.41184853,205.16,205.14,0.063]
[1738710228276,80.8,205.18,205.14,0.063]
[1738710228774,22.87469256,205.17,205.14,0.063]
[1738710229672,0.09963158,205.15,205.14,0.063]
[1738710230269,0.09963158,205.15,205.14,312.063]
[1738710232799,0.09963158,205.15,205.14,316.9377]
[1738710233103,0.09963158,205.15,205.14,330.85150853]
[1738710233104,3.158e-05,205.15,205.14,330.85150853]
[1738710233709,3.158e-05,205.15,205.14,316.9377]
[1738710233894,3.158e-05,205.15,205.14,312.063]
[1738710235180,22.87472414,205.15,205.14,0.063]
[1738710235377,23.25119414,205.15,205.14,0.063]
[1738710235604,36.66304267,205.15,205.14,0.063]
[1738710235904,20.37647,205.11,205.08,0.063]
[1738710236093,23.00018256,205.09,205.08,0.063]
[1738710236692,23.36219256,205.09,205.08,0.063]
[1738710237389,22.87469256,205.14,205.08,0.063]
[1738710237597,22.87472414,205.15,205.08,0.063]
[1738710238188,3.158e-05,205.15,205.11,312.0]
[1738710238694,3.158e-05,205.15,205.11,22.87469256]
[1738710238995,3.158e-05,205.15,205.11,27.74999256]
[1738710239208,3.158e-05,205.15,205.11,22.87469256]
[1738710239724,3.158e-05,205.15,205.09,22.87469256]
[1738710239900,22.87469256,205.1,205.08,0.063]
[1738710241319,23.36219256,205.1,205.08,0.063]
[1738710241803,0.12549,205.09,205.08,0.063]
[1738710242307,23.00018256,205.09,205.08,0.063]
[1738710242612,36.66301109,205.09,205.08,0.063]
[1738710243082,37.15051109,205.09,205.08,0.063]
[1738710243500,44.39611109,205.09,205.08,0.0001]
[1738710243701,13.78831853,205.04,205.03,0.0001]
[1738710243906,0.12549,205.0,204.93,0.063]
[1738710244111,22.87469256,204.94,204.93,0.063]
[1738710244881,23.36259256,204.94,204.93,0.063]
[1738710245088,20.0,204.91,204.84,0.063]
[1738710245282,22.87469256,204.85,204.84,0.063]
[1738710245921,22.87469256,204.91,204.84,0.063]
[1738710246087,22.87469256,204.92,204.84,22.93769256]
[1738710246509,22.87469256,204.89,204.84,0.063]
[1738710246701,22.87469256,204.85,204.84,0.063]
[1738710247008,23.36279256,204.85,204.84,0.063]
[1738710247315,22.87469256,204.87,204.84,0.063]
[1738710247609,22.87469256,204.89,204.84,0.063]
[1738710247994,22.87469256,204.89,204.84,312.063]
[1738710248609,81.288,204.9,204.84,312.063]
[1738710248610,22.87469256,204.87,204.84,312.063]
[1738710249386,22.87469256,204.88,204.84,312.063]
[1738710249606,22.87469256,204.85,204.84,312.063]
[1738710249805,22.97632178,204.85,204.84,312.063]
[1738710250691,22.97632178,204.85,204.84,0.063]
[1738710250914,0.10162922,204.85,204.84,0.063]
[1738710252587,23.84089178,204.85,204.84,0.063]
[1738710252789,37.25274031,204.85,204.84,0.063]
[1738710252994,0.37647,204.82,204.72,0.063]
[1738710253207,22.87469256,204.75,204.72,0.063]
[1738710253514,22.87469256,204.74,204.72,0.063]
[1738710253720,22.87469256,204.73,204.72,312.063]
[1738710254012,23.36309256,204.73,204.72,0.063]
[1738710254233,39.15141109,204.73,204.72,0.0001]
[1738710254513,0.37647,204.67,204.59,0.063]
[1738710254815,22.87469256,204.64,204.59,0.063]
[1738710255190,1.0,204.76,204.59,0.063]
[1738710255394,0.4884,204.73,204.64,22.91485277]
[1738710255613,0.4884,204.75,204.64,22.91485277]
[1738710255807,20.0,204.71,204.64,22.91485277]
[1738710256008,20.0,204.71,204.63,22.97785277]
[1738710256191,0.37647,204.68,204.63,0.063]
[1738710256919,0.37647,204.68,204.63,312.063]
[1738710257100,20.0,204.69,204.63,312.063]
[1738710257298,80.8,204.72,204.65,22.91485277]
[1738710257695,0.12549,204.71,204.63,22.97785277]
[1738710257899,0.37647,204.68,204.63,0.063]
[1738710258325,13.41184853,204.67,204.63,0.063]
[1738710258497,13.41184853,204.65,204.63,0.063]
[1738710258706,13.78831853,204.64,204.63,0.063]
[1738710259216,0.4885,204.68,204.63,0.063]
[1738710259608,0.4885,204.7,204.63,0.063]
[1738710259809,80.8,204.72,204.65,22.91485277]
[1738710260011,80.8,204.72,204.64,22.91485277]
[1738710260412,80.83,204.72,204.67,334.91485277]
[1738710260620,0.03,204.72,204.7,22.91485277]
[1738710260923,0.5184,204.72,204.65,4.38]
[1738710261321,0.03,204.72,204.65,27.29485277]
[1738710261526,0.03,204.72,204.66,22.91485277]
[1738710262021,0.03,204.72,204.69,22.91485277]
[1738710262413,0.03,204.72,204.69,27.80005277]
[1738710262726,0.03,204.72,204.69,42.07549499]
[1738710262922,0.03,204.72,204.71,37.19029499]
[1738710263109,0.03,204.72,204.71,37.92281728]
[1738710263309,0.10162922,204.85,204.74,20.0]
[1738710263504,0.10162922,204.85,204.78,37.19029499]
[1738710263914,0.10162922,204.85,204.8,37.19029499]
[1738710264239,0.10162922,204.85,204.83,37.19029499]
[1738710264409,0.10162922,204.85,204.84,4.8818]
[1738710264602,0.10162922,204.85,204.81,37.19029499]
[1738710264805,0.10162922,204.85,204.78,4.38]
[1738710265042,0.10162922,204.85,204.73,37.19029499]
[1738710265043,34.37804775,204.85,204.73,37.19029499]
[1738710265211,34.37804775,204.85,204.72,4.8847]
[1738710265409,34.37804775,204.85,204.74,20.0]
[1738710265615,35.59844775,204.85,204.7,4.8851]
[1738710265940,0.37647,204.79,204.68,4.8855]
[1738710266829,0.37647,204.79,204.71,37.19029499]
[1738710267037,0.86477,204.79,204.69,37.19029499]
[1738710267325,0.86477,204.79,204.68,4.8855]
[1738710267530,0.86477,204.79,204.72,312.0]
[1738710267828,20.0,204.8,204.72,312.0]
[1738710268041,0.10162922,204.85,204.73,0.73255827]
[1738710268229,0.10162922,204.85,204.79,37.19029499]
[1738710268733,0.10162922,204.85,204.79,42.07309499]
[1738710268912,0.96619922,204.85,204.75,24.8838]
[1738710269111,13.41184853,204.84,204.73,4.8843]
[1738710269330,94.21184853,204.84,204.73,4.8843]
[1738710269720,0.10368656,204.74,204.73,4.8843]
[1738710270431,8.656e-05,204.74,204.73,18.42163853]
[1738710270742,6.982e-05,204.76,204.75,33.53733853]
[1738710270914,6.982e-05,204.76,204.75,383.45994872]
[1738710271109,3.808e-05,204.77,204.76,13.91380853]
[1738710271410,3.808e-05,204.77,204.76,13.53733853]
[1738710271617,3.808e-05,204.77,204.75,37.19029499]
[1738710272715,8.036e-05,204.79,204.78,0.12549]
[1738710272910,4.572e-05,204.8,204.79,21.02830853]
[1738710273117,80.8,204.97,204.82,33.53733853]
[1738710273118,4.462e-05,204.83,204.82,33.53733853]
[1738710273317,4.462e-05,204.83,204.82,71.45963735]
[1738710273719,4.462e-05,204.83,204.82,71.83610735]
[1738710273920,4.462e-05,204.83,204.82,57.19029499]
[1738710274238,4.462e-05,204.83,204.82,70.72763352]
[1738710274438,4.462e-05,204.83,204.82,383.45963544]
[1738710274634,4.462e-05,204.83,204.82,382.72763352]
[1738710274839,4.462e-05,204.83,204.82,383.10410352]
[1738710275144,0.03,204.98,204.88,0.37647]
[1738710275333,0.03,204.98,204.96,37.19029499]
[1738710275638,0.03,204.98,204.93,4.38]
[1738710275840,0.03,204.98,204.94,37.19029499]
[1738710276024,0.03,204.98,204.96,37.19029499]
[1738710276541,0.03,204.98,204.97,20.0]
[1738710276739,81.2875,205.12,205.02,1.0]
[1738710277037,20.0,205.17,205.08,37.19029499]
[1738710277242,20.0,205.17,205.1,37.19029499]
[1738710277425,0.4873,205.19,205.06,4.38]
[1738710277624,0.4873,205.19,205.08,37.19029499]
[1738710278034,80.8,205.2,205.1,37.19029499]
[1738710278229,80.8,205.2,205.07,0.73122078]
[1738710278230,80.8,205.2,205.13,312.0]
[1738710278526,0.03,205.24,205.16,20.0]
[1738710278743,0.03,205.24,205.2,37.19029499]
[1738710279037,0.03,205.24,205.17,37.19029499]
[1738710279418,0.03,205.24,205.13,0.7308868]
[1738710279621,0.37647,205.19,205.07,42.06659499]
[1738710279939,0.37647,205.17,205.06,23.37996858]
[1738710280343,13.41184853,205.14,205.06,18.50346858]
[1738710280521,0.37647,205.09,205.0,4.38]
[1738710280837,0.4875,205.12,205.0,4.38]
[1738710281036,13.78831853,205.11,205.0,9.2579]
[1738710281340,13.78831853,205.11,204.99,37.19029499]
[1738710281545,13.78831853,205.11,204.97,37.19029499]
[1738710281841,13.78831853,205.11,204.93,0.50196]
[1738710281842,0.37647,205.04,204.93,42.06979499]
[1738710282744,0.37647,205.02,204.93,37.19029499]
[1738710282964,0.86417,205.02,204.93,37.19029499]
[1738710283158,0.37647,205.02,204.93,37.19029499]
[1738710283326,0.37647,205.02,204.93,42.06989499]
[1738710283735,1.0,205.14,204.99,37.19029499]
[1738710284019,0.4875,205.12,205.03,37.19029499]
[1738710284432,13.78831853,205.11,205.03,37.19029499]
[1738710284636,13.78831853,205.07,204.94,37.19029499]
[1738710284850,33.41184853,205.05,205.04,312.0]
[1738710285153,0.37647,205.03,204.94,57.10472525]
[1738710285356,37.10472525,205.02,204.94,57.10472525]
[1738710286344,37.10472525,205.02,204.94,61.98392525]
[1738710286639,0.03,205.04,205.01,37.10472525]
[1738710286830,0.03,205.04,205.03,37.10472525]
[1738710287466,13.81831853,205.04,204.95,37.10472525]
[1738710287628,37.10472525,205.02,204.95,37.10472525]
[1738710287824,0.37647,204.97,204.89,37.10472525]
[1738710288064,37.10472525,204.96,204.95,312.0]
[1738710289239,37.10472525,204.98,204.95,312.0]
[1738710289474,37.10472525,205.0,204.93,37.10472525]
[1738710289947,0.09950841,204.96,204.93,37.10472525]
[1738710290326,0.09950841,204.96,204.95,61.98392525]
[1738710291728,8.41e-06,204.96,204.95,76.89773378]
[1738710291928,1.505e-05,204.99,204.98,13.91380853]
[1738710292134,9.34e-05,205.0,204.98,93.21467432]
[1738710292442,7.87e-05,205.01,205.0,0.50196]
[1738710292645,2.41e-05,205.02,205.0,88.85455054]
[1738710292835,2.41e-05,205.02,205.01,13.53733853]
[1738710293144,2.41e-05,205.02,205.0,88.85455054]
[1738710293145,2.41e-05,205.02,205.0,37.10472525]
[1738710293353,2.41e-05,205.02,204.98,4.36]
[1738710293665,37.10472525,205.0,204.98,4.36]
[1738710293826,37.59252525,205.0,204.98,4.36]
[1738710294645,37.10472525,205.0,204.98,4.36]
[1738710295627,0.25098,204.99,204.9,41.46472525]
[1738710295827,37.59252525,204.97,204.94,312.0]
[1738710296032,37.10472525,204.97,204.94,312.0]
[1738710296645,2.41e-05,205.02,204.94,37.10472525]
[1738710296845,37.35570525,205.01,204.94,37.10472525]
[1738710297053,37.35570525,205.01,204.94,37.16772525]
[1738710297943,37.10472525,205.01,204.94,37.16772525]
[1738710298134,37.10472525,205.01,204.94,42.04712525]
[1738710298742,37.10472525,204.97,204.94,0.063]
[1738710298955,37.10472525,204.99,204.94,0.063]
[1738710299730,37.10472525,204.99,204.96,312.0]
[1738710300248,37.59252525,204.99,204.96,312.0]
[1738710301429,81.05098,205.0,204.94,0.063]
[1738710301753,81.53878,205.0,204.94,0.063]
[1738710302052,37.10472525,204.95,204.94,0.063]
[1738710302627,80.8,204.99,204.94,0.063]
[1738710302830,2.41e-05,205.02,204.96,37.10472525]
[1738710303347,37.10472525,205.01,204.94,37.16772525]
[1738710303654,2.41e-05,205.02,204.94,0.063]
[1738710303655,37.10472525,204.99,204.94,0.063]
[1738710303853,37.10472525,204.97,204.94,0.063]
[1738710304454,37.59252525,204.97,204.94,312.063]
[1738710305255,37.10472525,204.97,204.94,312.063]
[1738710305434,2.41e-05,205.02,204.94,37.16772525]
[1738710305933,0.4877241,205.02,204.94,37.16772525]
[1738710306237,2.41e-05,205.02,204.95,4.8792]
[1738710306741,2.41e-05,205.02,205.0,37.10472525]
[1738710308151,0.4877241,205.02,204.98,4.36]
[1738710308355,37.59244935,205.02,205.0,312.0]
[1738710309054,13.78831853,205.01,204.94,0.063]
[1738710309243,37.10472525,204.97,204.94,0.063]
[1738710309453,37.10472525,204.99,204.94,0.063]
[1738710309944,0.10370558,204.95,204.94,4.9424]
[1738710310149,0.10370558,204.95,204.94,42.04712525]
[1738710310942,5.58e-06,204.95,204.94,42.17261525]
[1738710311254,37.10472525,205.11,204.98,20.0]
[1738710311460,4.473e-05,205.0,204.99,51.37359693]
[1738710312056,4.473e-05,205.0,204.99,363.37359693]
[1738710312231,4.473e-05,205.0,204.99,349.10472525]
[1738710312431,4.473e-05,205.0,204.99,316.8782]
[1738710312854,4.473e-05,205.0,204.99,312.0]
[1738710313159,4.473e-05,205.0,204.94,0.063]
[1738710313463,37.10472525,204.98,204.94,0.063]
[1738710314358,37.10476998,205.0,204.94,0.063]
[1738710314657,4.473e-05,205.0,204.95,37.10472525]
[1738710315153,4.473e-05,205.0,204.94,0.063]
[1738710315535,4.473e-05,205.0,204.95,37.10472525]
[1738710315956,35.55651579,205.04,204.95,37.10472525]
[1738710316181,80.8,205.03,204.99,312.0]
[1738710316342,35.55651579,205.04,204.99,312.0]
[1738710316545,80.8,205.09,204.99,312.0]
[1738710316546,80.8,205.09,205.02,37.10472525]
[1738710316961,80.8,205.09,204.95,0.73147643]
[1738710316962,37.10472525,205.04,204.95,37.10472525]
[1738710317142,13.78831853,205.07,204.95,4.8792]
[1738710317143,37.10472525,205.02,204.95,4.8792]
[1738710317542,37.10472525,205.02,204.96,20.0]
[1738710318248,13.53733853,205.07,204.99,37.10472525]
[1738710318440,117.90472525,205.08,205.01,37.10472525]
[1738710318647,80.8,205.08,205.03,37.10472525]
[1738710318971,117.90472525,205.08,205.01,37.10472525]
[1738710319540,117.90472525,205.08,205.06,312.0]
[1738710320159,117.90472525,205.08,205.01,37.10472525]
[1738710320361,117.90472525,205.08,205.02,4.8775]
[1738710321549,117.93472525,205.08,205.02,4.8775]
[1738710322648,0.25098,205.07,204.99,37.16772525]
[1738710322846,37.10472525,205.04,204.99,0.063]
[1738710323045,37.10472525,205.02,205.01,312.0]
[1738710323262,37.10472525,205.04,205.01,312.0]
[1738710324467,37.10472525,205.02,205.01,312.0]